bitfinex-derivatives/quotes_SOLF0:USTF0_20250428
["timestamp","ask_amount","ask_price","bid_price","bid_amount"]
[1745801470309,6.7879,147.28,147.23,6.7898]
[1745801470613,6.7882,147.27,147.21,28.82]
[1745801470814,7.34428755,147.29,147.21,28.82]
[1745801471418,28.82,147.3,147.22,7.34428755]
[1745801471717,9.30318755,147.33,147.24,7.34428755]
[1745801471914,9.30318755,147.33,147.25,30.9212]
[1745801472313,16.08878755,147.33,147.29,6.787]
[1745801472713,9.30318755,147.33,147.3,6.7865]
[1745801472919,35.5849,147.34,147.26,9.43388755]
[1745801473113,35.5849,147.34,147.26,11.43528755]
[1745801473615,28.8,147.34,147.26,11.43528755]
[1745801474813,525.14428755,147.37,147.28,7.34428755]
[1745801475012,525.14428755,147.37,147.29,28.8]
[1745801475013,36.14428755,147.37,147.29,28.8]
[1745801475307,36.14428755,147.37,147.32,6.7854]
[1745801475716,6.7841,147.36,147.32,6.7854]
[1745801476117,6.7841,147.36,147.33,6.7851]
[1745801476319,36.14428755,147.37,147.33,6.7851]
[1745801476516,36.14428755,147.37,147.29,28.8]
[1745801476710,36.14428755,147.37,147.33,6.7849]
[1745801477018,42.92788755,147.37,147.29,28.8]
[1745801477417,42.92788755,147.37,147.33,6.785]
[1745801477716,28.8,147.37,147.3,7.34428755]
[1745801478417,6.7831,147.38,147.3,7.34428755]
[1745801478717,18.25978755,147.39,147.35,6.784]
[1745801479818,6.7825,147.39,147.36,6.7838]
[1745801480021,6.7825,147.39,147.32,7.34428755]
[1745801480317,6.783,147.38,147.34,6.7845]
[1745801480719,6.783,147.38,147.35,6.7842]
[1745801481822,38.05918755,147.41,147.36,6.7837]
[1745801482021,38.05918755,147.41,147.33,28.72]
[1745801482620,38.05918755,147.41,147.36,6.7836]
[1745801482621,6.7822,147.4,147.36,6.7836]
[1745801483619,6.7822,147.4,147.37,6.7834]
[1745801485124,35.5217,147.41,147.37,6.7834]
[1745801485322,28.74,147.41,147.38,6.7826]
[1745801485718,7.34428755,147.42,147.38,6.7826]
[1745801486225,6.7816,147.41,147.38,6.7826]
[1745801487423,6.7823,147.4,147.36,6.7836]
[1745801487719,4.69181292,147.37,147.33,33.41181292]
[1745801488523,4.69181292,147.37,147.35,6.784]
[1745801489124,4.69181292,147.38,147.36,6.7838]
[1745801489421,4.69181292,147.39,147.35,4.69181292]
[1745801489622,14.11185852,147.41,147.33,28.72]
[1745801489824,14.11185852,147.41,147.37,6.7833]
[1745801490821,6.7821,147.4,147.37,6.7833]
[1745801491220,7.32995852,147.41,147.36,6.7837]
[1745801492026,7.32995852,147.41,147.35,6.7843]
[1745801492220,7.32995852,147.37,147.31,1.9937]
[1745801493023,7.32995852,147.37,147.3,28.72]
[1745801494029,6.784,147.36,147.3,28.72]
[1745801494229,7.32995852,147.37,147.3,28.72]
[1745801494629,14.11355852,147.37,147.34,6.7845]
[1745801494929,7.32995852,147.39,147.3,36.04995852]
[1745801495333,7.32995852,147.39,147.34,6.7844]
[1745801495334,6.7833,147.38,147.34,6.7844]
[1745801496029,6.7833,147.38,147.35,6.7842]
[1745801496530,6.7836,147.37,147.3,36.04995852]
[1745801496828,7.32995852,147.35,147.3,28.72]
[1745801497027,6.7853,147.33,147.3,6.7865]
[1745801497330,7.32995852,147.33,147.27,30.656]
[1745801497532,7.32995852,147.31,147.24,28.72]
[1745801497731,6.7867,147.3,147.24,28.72]
[1745801498231,6.7867,147.3,147.26,6.7881]
[1745801498625,6.7872,147.29,147.24,28.72]
[1745801498833,7.32995852,147.31,147.24,28.72]
[1745801499029,28.72,147.32,147.24,28.72]
[1745801499227,35.5058,147.32,147.24,28.72]
[1745801499532,35.5058,147.32,147.28,6.7871]
[1745801499833,6.7862,147.31,147.24,28.72]
[1745801500526,7.32995852,147.29,147.24,28.72]
[1745801500724,7.32995852,147.29,147.24,6.7892]
[1745801501432,6.7881,147.27,147.23,6.7897]
[1745801501627,14.11805852,147.27,147.23,6.7897]
[1745801502031,6.7886,147.26,147.23,6.7897]
[1745801502232,6.7886,147.26,147.22,6.7902]
[1745801502432,4.0746,147.27,147.21,28.72]
[1745801502738,28.72,147.28,147.21,28.72]
[1745801503033,28.72,147.28,147.25,6.7889]
[1745801503731,28.72,147.28,147.21,28.72]
[1745801503938,7.32995852,147.27,147.21,28.72]
[1745801504336,7.32995852,147.27,147.23,6.7896]
[1745801504830,7.32995852,147.27,147.22,6.7902]
[1745801505036,7.32995852,147.27,147.21,28.72]
[1745801505335,7.32995852,147.27,147.24,6.7891]
[1745801508533,7.32995852,147.27,147.25,6.7889]
[1745801508734,28.72,147.28,147.21,28.72]
[1745801509141,35.5078,147.28,147.24,6.7891]
[1745801509838,28.72,147.28,147.25,6.7888]
[1745801510537,28.72,147.28,147.21,28.72]
[1745801511343,7.32995852,147.29,147.21,36.04995852]
[1745801511637,35.98995852,147.31,147.23,7.32995852]
[1745801511839,4.61788905,147.3,147.23,7.32995852]
[1745801512041,4.0091,147.33,147.25,7.32995852]
[1745801512234,517.2,147.35,147.27,7.32995852]
[1745801512434,4.61842744,147.34,147.27,7.32995852]
[1745801512639,4.61842744,147.34,147.32,6.7856]
[1745801513040,4.61842744,147.34,147.31,6.7859]
[1745801514846,4.61842744,147.34,147.32,6.7857]
[1745801515347,35.4446,147.35,147.32,6.7857]
[1745801515649,4.61824733,147.34,147.31,6.786]
[1745801517954,4.61824733,147.34,147.32,6.7856]
[1745801518247,28.66,147.35,147.27,7.32995852]
[1745801518450,28.66,147.35,147.28,5.9234]
[1745801518849,7.32995852,147.36,147.28,5.9234]
[1745801519747,4.61897455,147.35,147.28,5.9234]
[1745801520049,4.61897455,147.35,147.32,6.7856]
[1745801520347,4.61897455,147.35,147.28,5.9234]
[1745801520547,7.32995852,147.36,147.28,5.9234]
[1745801520744,7.32995852,147.36,147.33,6.7853]
[1745801521752,14.11425852,147.36,147.32,6.7857]
[1745801522151,4.62381518,147.35,147.32,6.7857]
[1745801522352,14.11425852,147.36,147.32,6.7857]
[1745801522550,38.02775852,147.38,147.28,5.9234]
[1745801522752,4.62459727,147.37,147.28,5.9234]
[1745801522953,11.40879727,147.36,147.32,6.7854]
[1745801523157,7.32995852,147.36,147.28,5.9234]
[1745801523446,6.7863,147.31,147.28,6.7875]
[1745801523753,6.7863,147.31,147.26,28.66]
[1745801524149,6.7863,147.31,147.27,6.7876]
[1745801524345,6.7867,147.3,147.27,6.7876]
[1745801524548,7.32995852,147.3,147.25,6.7886]
[1745801524855,6.7874,147.29,147.25,6.7886]
[1745801525045,35.98995852,147.3,147.27,6.7879]
[1745801525249,35.98995852,147.3,147.23,28.66]
[1745801525451,42.77675852,147.3,147.23,28.66]
[1745801526050,35.98995852,147.3,147.23,28.66]
[1745801526256,7.32995852,147.32,147.23,35.98995852]
[1745801526752,30.6058,147.33,147.25,7.32995852]
[1745801526956,35.98995852,147.36,147.27,7.32995852]
[1745801527256,4.63318739,147.35,147.28,30.6212]
[1745801527459,4.63318739,147.34,147.28,30.6212]
[1745801527659,35.98995852,147.36,147.28,30.6212]
[1745801527956,4.63416067,147.35,147.28,30.6212]
[1745801528257,4.63416067,147.35,147.33,6.7849]
[1745801529358,4.63416067,147.35,147.32,6.7855]
[1745801529651,4.63416067,147.35,147.28,30.6212]
[1745801529857,4.63416067,147.34,147.28,30.6212]
[1745801530058,4.63416067,147.34,147.32,6.7857]
[1745801530361,4.63416067,147.34,147.28,30.6212]
[1745801531560,4.63416067,147.34,147.32,6.7854]
[1745801531861,42.77395852,147.36,147.28,30.6212]
[1745801532061,4.64620354,147.35,147.28,34.7242]
[1745801532262,4.64620354,147.34,147.32,6.7854]
[1745801532451,14.11325852,147.38,147.29,7.32995852]
[1745801532656,4.64745642,147.37,147.34,6.7845]
[1745801532855,4.64745642,147.36,147.34,6.7845]
[1745801533054,4.64745642,147.35,147.34,6.7845]
[1745801533258,4.64745642,147.37,147.34,6.7845]
[1745801533459,4.64745642,147.36,147.34,6.7845]
[1745801533659,14.11325852,147.38,147.34,6.7845]
[1745801533955,4.64785149,147.37,147.34,6.7845]
[1745801534151,4.64785149,147.36,147.35,6.7843]
[1745801534358,28.66,147.39,147.31,7.32995852]
[1745801534562,4.6472986,147.38,147.31,7.32995852]
[1745801534762,28.66,147.39,147.36,6.7834]
[1745801534962,28.66,147.39,147.32,28.66]
[1745801535162,7.32995852,147.4,147.32,28.66]
[1745801535463,4.64691846,147.39,147.32,28.66]
[1745801535664,7.32995852,147.4,147.37,6.7832]
[1745801535863,4.64728047,147.39,147.37,6.7832]
[1745801536065,7.32995852,147.4,147.37,6.7832]
[1745801536366,4.64728047,147.39,147.37,6.7832]
[1745801536561,14.11205852,147.4,147.37,6.7832]
[1745801536762,4.64765582,147.39,147.37,6.7832]
[1745801536963,517.42,147.42,147.32,28.66]
[1745801536964,524.74995852,147.42,147.33,7.32995852]
[1745801537160,4.64755047,147.41,147.33,7.32995852]
[1745801537358,4.64655763,147.4,147.34,2.1362]
[1745801537559,35.98995852,147.42,147.34,2.1362]
[1745801537759,4.6465581,147.41,147.34,2.1362]
[1745801537966,4.6465581,147.4,147.34,2.1362]
[1745801538269,28.66,147.42,147.35,7.32995852]
[1745801538465,4.64634622,147.41,147.35,7.32995852]
[1745801538663,30.5907,147.45,147.37,7.32995852]
[1745801538866,4.64426655,147.44,147.37,7.32995852]
[1745801539070,4.64426655,147.43,147.37,7.32995852]
[1745801539266,28.58,147.45,147.37,7.32995852]
[1745801539467,4.64411827,147.44,147.37,7.32995852]
[1745801539768,4.64411827,147.43,147.41,6.7812]
[1745801539967,35.36,147.45,147.41,6.7812]
[1745801540167,4.64115344,147.44,147.41,6.7812]
[1745801541167,35.36,147.45,147.41,6.7812]
[1745801541364,4.63906643,147.44,147.41,6.7812]
[1745801542564,4.63906643,147.44,147.43,6.7807]
[1745801542767,7.32995852,147.51,147.42,7.32995852]
[1745801543066,4.63353308,147.5,147.42,7.32995852]
[1745801543266,11.41153308,147.49,147.45,6.7797]
[1745801543465,7.32995852,147.51,147.42,7.32995852]
[1745801543669,4.62968158,147.5,147.42,9.39345852]
[1745801543969,32.7817,147.52,147.48,6.7783]
[1745801544165,4.62873658,147.51,147.48,6.7783]
[1745801544369,32.7817,147.52,147.48,6.7783]
[1745801544574,30.6794,147.52,147.48,6.7783]
[1745801544873,30.6794,147.52,147.47,6.7787]
[1745801545168,30.6794,147.52,147.44,7.32995852]
[1745801545374,37.4561,147.52,147.47,6.7784]
[1745801545575,30.6794,147.52,147.47,6.7784]
[1745801545872,7.32995852,147.49,147.42,2.0635]
[1745801546873,6.7787,147.48,147.44,6.7801]
[1745801547171,7.32995852,147.49,147.42,2.0635]
[1745801547372,7.32995852,147.49,147.46,6.779]
[1745801548072,6.7776,147.5,147.46,6.779]
[1745801548372,7.32995852,147.51,147.42,11.35385852]
[1745801548671,7.32995852,147.49,147.42,4.0239]
[1745801548975,6.7785,147.48,147.44,6.7799]
[1745801549271,7.32995852,147.49,147.44,6.7799]
[1745801549474,7.32995852,147.49,147.42,2.0635]
[1745801550377,14.10815852,147.49,147.44,6.7802]
[1745801551276,7.32995852,147.49,147.43,6.7805]
[1745801551670,7.32995852,147.47,147.4,7.32995852]
[1745801551876,14.11005852,147.45,147.41,6.7813]
[1745801554379,7.32995852,147.45,147.42,6.781]
[1745801555177,7.32995852,147.45,147.41,6.7816]
[1745801555579,14.10985852,147.45,147.41,6.7816]
[1745801555786,14.10985852,147.45,147.42,6.7811]
[1745801556083,7.32995852,147.45,147.42,6.7811]
[1745801557579,14.10975852,147.45,147.42,6.7811]
[1745801558684,14.10975852,147.45,147.41,6.7815]
[1745801560783,14.10975852,147.45,147.42,6.7811]
[1745801561981,14.10975852,147.45,147.41,6.7814]
[1745801562180,6.7803,147.44,147.41,6.7814]
[1745801562385,7.32995852,147.45,147.39,28.58]
[1745801562687,7.32995852,147.45,147.36,30.6126]
[1745801562888,6.7804,147.44,147.36,30.6126]
[1745801563183,6.7804,147.44,147.4,6.7818]
[1745801565691,14.10985852,147.45,147.41,6.7814]
[1745801565890,1.9595,147.46,147.37,9.40145852]
[1745801566390,8.7392,147.46,147.42,6.7809]
[1745801570488,6.7797,147.45,147.42,6.7809]
[1745801570695,1.9595,147.46,147.42,6.7809]
[1745801570995,1.9595,147.46,147.41,6.7815]
[1745801571199,1.9595,147.46,147.37,9.40145852]
[1745801571499,8.7389,147.46,147.37,9.40145852]
[1745801571795,8.7389,147.46,147.42,6.7807]
[1745801572000,6.7799,147.45,147.42,6.7807]
[1745801572201,7.32995852,147.45,147.41,6.7815]
[1745801573002,7.32995852,147.45,147.36,30.6126]
[1745801573302,4.62754587,147.44,147.36,30.6126]
[1745801573604,6.7809,147.43,147.36,30.6126]
[1745801573802,7.32995852,147.43,147.36,30.6126]
[1745801574603,14.11075852,147.43,147.39,6.7822]
[1745801574804,7.32995852,147.43,147.39,6.7822]
[1745801576405,4.63711287,147.42,147.39,6.7822]
[1745801576600,7.32995852,147.43,147.39,6.7822]
[1745801576903,4.63871525,147.42,147.39,6.7822]
[1745801577099,7.32995852,147.43,147.39,6.7822]
[1745801577296,4.6377924,147.42,147.39,6.7822]
[1745801577500,9.32781164,147.41,147.36,35.30261924]
[1745801577700,4.69001924,147.41,147.37,4.69001924]
[1745801578106,4.69001924,147.41,147.39,6.7822]
[1745801580103,4.69001924,147.41,147.38,6.7828]
[1745801580307,4.69001924,147.41,147.37,4.69001924]
[1745801581311,4.64861655,147.4,147.39,6.7822]
[1745801582207,4.64759445,147.4,147.39,6.7822]
[1745801585912,4.64759445,147.4,147.38,6.7828]
[1745801586101,4.69001924,147.41,147.38,6.7828]
[1745801586305,4.65027208,147.4,147.38,6.7828]
[1745801586505,11.47161924,147.41,147.38,6.7828]
[1745801586710,4.65129424,147.4,147.38,6.7828]
[1745801586910,11.47161924,147.41,147.38,6.7828]
[1745801587112,4.69001924,147.39,147.3,33.19001924]
[1745801587314,4.69001924,147.34,147.3,33.19001924]
[1745801587514,4.69001924,147.34,147.3,28.5]
[1745801587713,4.69001924,147.33,147.3,28.5]
[1745801587911,4.69001924,147.33,147.28,4.69001924]
[1745801588114,4.69001924,147.33,147.31,6.7861]
[1745801590214,4.69001924,147.33,147.3,6.7866]
[1745801590512,4.69001924,147.32,147.3,6.7866]
[1745801590814,4.69001924,147.32,147.28,4.69001924]
[1745801591009,4.69001924,147.33,147.28,4.69001924]
[1745801591710,4.69001924,147.34,147.27,32.5727]
[1745801591916,4.69001924,147.36,147.31,4.69001924]
[1745801592117,28.52,147.38,147.35,4.69001924]
[1745801592316,4.69001924,147.39,147.36,6.7835]
[1745801592517,4.69001924,147.37,147.26,28.52]
[1745801592717,4.69001924,147.32,147.27,4.69001924]
[1745801593019,4.69001924,147.33,147.28,4.69001924]
[1745801594410,4.69001924,147.33,147.31,6.7862]
[1745801594617,4.69001924,147.36,147.31,4.69001924]
[1745801595522,6.7839,147.36,147.3,28.52]
[1745801595815,40.00871326,147.39,147.3,28.52]
[1745801596018,7.33281326,147.37,147.3,28.52]
[1745801596215,6.7844,147.35,147.31,6.7859]
[1745801596817,6.7849,147.34,147.3,6.7865]
[1745801597120,7.33281326,147.35,147.27,28.52]
[1745801597320,4.64212868,147.34,147.27,28.52]
[1745801597522,6.7854,147.33,147.29,6.7867]
[1745801601825,6.7849,147.34,147.3,6.7865]
[1745801603523,35.85281326,147.35,147.27,28.52]
[1745801603721,4.63834713,147.34,147.27,28.52]
[1745801605225,6.786,147.32,147.29,6.7871]
[1745801608029,7.33281326,147.33,147.26,2.0566]
[1745801608228,7.33281326,147.31,147.24,30.521]
[1745801609230,6.7872,147.29,147.26,6.7882]
[1745801610527,35.79281326,147.31,147.27,6.788]
[1745801610829,9.46751326,147.33,147.24,37.85381326]
[1745801611031,14.11821326,147.33,147.29,6.7868]
[1745801611227,7.33281326,147.33,147.26,7.33281326]
[1745801611833,28.46,147.34,147.26,7.33281326]
[1745801612226,28.46,147.34,147.29,6.7867]
[1745801612831,35.2451,147.34,147.29,6.7867]
[1745801614930,14.11811326,147.33,147.29,6.7867]
[1745801615130,7.33281326,147.33,147.28,6.7875]
[1745801615635,14.11821326,147.33,147.28,6.7875]
[1745801615833,7.33281326,147.33,147.28,6.7875]
[1745801617035,6.7858,147.32,147.28,6.7875]
[1745801617233,7.33281326,147.33,147.24,37.85381326]
[1745801617534,4.69641669,147.31,147.26,4.69641669]
[1745801617728,4.69641669,147.31,147.24,30.521]
[1745801617729,28.46,147.34,147.31,6.786]
[1745801617925,9.33374213,147.33,147.31,6.786]
[1745801618124,4.69641669,147.33,147.31,6.786]
[1745801619336,33.15641669,147.34,147.29,4.69641669]
[1745801619537,28.46,147.34,147.3,4.69641669]
[1745801619726,33.15641669,147.37,147.32,4.69641669]
[1745801619928,28.46,147.38,147.33,4.69641669]
[1745801620235,9.33824289,147.37,147.33,4.69641669]
[1745801620427,4.69641669,147.37,147.35,6.7842]
[1745801621633,28.46,147.38,147.36,6.7837]
[1745801622037,28.46,147.38,147.3,37.85393151]
[1745801622231,7.33233151,147.39,147.3,37.85393151]
[1745801622432,530.89423151,147.41,147.37,6.7834]
[1745801622630,4.64456418,147.4,147.34,7.33233151]
[1745801622834,28.46,147.41,147.34,35.79233151]
[1745801623033,28.46,147.41,147.38,6.7828]
[1745801623430,28.46,147.41,147.34,35.79233151]
[1745801624939,28.46,147.41,147.38,6.7827]
[1745801625841,28.46,147.41,147.39,6.7824]
[1745801626540,28.46,147.41,147.4,6.782]
[1745801626737,33.10291484,147.41,147.4,6.782]
[1745801627138,33.10291484,147.41,147.34,35.79233151]
[1745801627341,28.46,147.41,147.34,35.79233151]
[1745801628444,28.46,147.41,147.38,6.7826]
[1745801629145,28.46,147.41,147.39,6.7825]
[1745801629348,28.46,147.41,147.34,35.79233151]
[1745801629644,28.38,147.44,147.36,7.33233151]
[1745801629845,4.64512001,147.43,147.42,6.781]
[1745801632249,28.38,147.44,147.42,6.781]
[1745801633253,4.63340962,147.43,147.42,6.781]
[1745801633451,28.38,147.44,147.42,6.781]
[1745801634955,495.3785,147.48,147.38,28.38]
[1745801635156,11.95781477,147.47,147.38,35.71233151]
[1745801635355,4.62548326,147.46,147.38,35.71233151]
[1745801635756,11.40478326,147.46,147.42,6.7808]
[1745801635957,6.7793,147.46,147.42,6.7808]
[1745801636457,18.73255006,147.45,147.38,35.71233151]
[1745801636654,14.11223151,147.45,147.38,35.71233151]
[1745801636858,4.62017859,147.44,147.38,35.71233151]
[1745801637157,14.11223151,147.45,147.4,6.7817]
[1745801637456,4.61970216,147.44,147.4,6.7817]
[1745801638061,11.40000216,147.44,147.4,6.7817]
[1745801638355,35.1603,147.44,147.4,6.7817]
[1745801640458,35.1603,147.44,147.41,6.7815]
[1745801640859,35.1603,147.44,147.4,6.7819]
[1745801641162,6.7808,147.43,147.4,6.7819]
[1745801641561,28.38,147.44,147.35,32.4845]
[1745801641562,7.33233151,147.41,147.35,32.4845]
[1745801641864,14.11393151,147.41,147.35,32.4845]
[1745801642060,7.33233151,147.41,147.38,6.7828]
[1745801643563,4.69068377,147.4,147.38,6.7828]
[1745801646666,4.69068377,147.4,147.37,6.7833]
[1745801646865,4.69068377,147.39,147.35,37.17518377]
[1745801647065,4.69068377,147.39,147.35,35.04158377]
[1745801648667,4.69068377,147.39,147.35,30.3509]
[1745801648868,4.69068377,147.37,147.33,4.69068377]
[1745801649065,4.69068377,147.37,147.32,33.07068377]
[1745801649363,4.69068377,147.37,147.35,6.7842]
[1745801652671,4.69068377,147.37,147.36,6.7839]
[1745801652869,28.38,147.4,147.32,28.38]
[1745801652870,4.69068377,147.38,147.34,4.69068377]
[1745801653170,4.69068377,147.38,147.35,6.7842]
[1745801653672,4.69068377,147.38,147.34,4.69068377]
[1745801655268,4.69068377,147.38,147.36,6.7839]
[1745801657769,4.64660586,147.37,147.36,6.7839]
[1745801658371,9.33728963,147.37,147.32,28.38]
[1745801658571,9.33697866,147.36,147.31,6.83708377]
[1745801658771,4.69068377,147.37,147.32,4.69068377]
[1745801658971,4.64626498,147.36,147.35,6.7841]
[1745801659176,4.69068377,147.38,147.33,4.69068377]
[1745801659471,4.6464092,147.37,147.34,4.69068377]
[1745801659670,4.69068377,147.38,147.37,6.7834]
[1745801659870,9.33791551,147.38,147.37,6.7834]
[1745801660271,4.64723174,147.38,147.37,6.7834]
[1745801660873,4.69068377,147.41,147.38,6.7826]
[1745801661173,4.64793103,147.4,147.38,6.7826]
[1745801661374,4.64793103,147.39,147.38,6.7826]
[1745801661873,4.64793103,147.39,147.37,6.7833]
[1745801662172,4.69068377,147.4,147.37,6.7833]
[1745801662373,4.64741229,147.39,147.37,6.7833]
[1745801662572,4.69068377,147.39,147.37,6.7833]
[1745801664174,4.65329576,147.38,147.37,6.7833]
[1745801664975,9.34397953,147.38,147.33,4.69068377]
[1745801665170,9.34397953,147.37,147.32,33.01068377]
[1745801665370,4.65329576,147.36,147.32,33.01068377]
[1745801665675,4.69068377,147.37,147.34,6.7845]
[1745801665876,4.66012713,147.36,147.34,6.7845]
[1745801666071,4.66012713,147.36,147.31,2.1464]
[1745801666072,4.69068377,147.35,147.33,6.7852]
[1745801666283,9.3508406,147.34,147.3,2.1029]
[1745801666576,9.3508406,147.33,147.29,30.4559]
[1745801666767,4.69068377,147.33,147.31,6.7859]
[1745801667569,4.69068377,147.33,147.32,6.7857]
[1745801667773,4.6589046,147.33,147.32,6.7857]
[1745801667969,4.6589046,147.33,147.29,35.14658377]
[1745801667970,37.66958837,147.33,147.21,30.284]
[1745801668170,4.69068377,147.3,147.24,4.69068377]
[1745801668369,9.34958837,147.29,147.24,4.69068377]
[1745801668568,4.69068377,147.3,147.27,6.7877]
[1745801668769,4.65349164,147.29,147.27,6.7877]
[1745801669076,4.69068377,147.3,147.28,6.7872]
[1745801669378,9.34595825,147.29,147.23,4.69068377]
[1745801669573,4.69068377,147.28,147.23,4.69068377]
[1745801672181,4.69068377,147.28,147.25,6.7889]
[1745801672386,4.69068377,147.26,147.21,38.84378377]
[1745801672885,4.69068377,147.26,147.23,6.7894]
[1745801673383,11.47878377,147.27,147.23,6.7894]
[1745801674586,11.47878377,147.27,147.24,6.7894]
[1745801675181,4.69068377,147.28,147.23,4.69068377]
[1745801678590,4.69068377,147.28,147.25,6.7886]
[1745801680992,4.69068377,147.27,147.25,6.7886]
[1745801681289,4.69068377,147.27,147.26,6.7885]
[1745801681489,4.69068377,147.28,147.26,6.7885]
[1745801681794,4.69068377,147.28,147.24,4.69068377]
[1745801681994,4.69068377,147.28,147.25,6.7886]
[1745801682893,4.69068377,147.27,147.25,6.7886]
[1745801685398,4.69068377,147.27,147.26,6.7885]
[1745801686198,28.32,147.29,147.26,6.7885]
[1745801686396,28.32,147.29,147.23,4.69068377]
[1745801686397,33.01068377,147.29,147.27,6.788]
[1745801686791,4.69068377,147.28,147.27,6.788]
[1745801692905,4.69068377,147.28,147.26,6.7883]
[1745801693909,11.47838377,147.28,147.23,4.69068377]
[1745801694409,11.47838377,147.28,147.24,6.7891]
[1745801694609,11.47868377,147.27,147.24,6.7891]
[1745801694910,4.69068377,147.27,147.24,6.7891]
[1745801696612,4.69068377,147.27,147.25,6.7889]
[1745801697712,4.69068377,147.26,147.21,4.69068377]
[1745801697911,4.69068377,147.28,147.24,4.69068377]
[1745801698107,4.69068377,147.27,147.22,4.69068377]
[1745801698311,28.26,147.29,147.22,4.69068377]
[1745801698312,4.69068377,147.26,147.22,4.69068377]
[1745801698717,4.69068377,147.26,147.23,6.7896]
[1745801699417,4.69068377,147.25,147.23,6.7896]
[1745801699614,4.69068377,147.24,147.19,4.69068377]
[1745801699819,4.69068377,147.22,147.18,28.26]
[1745801700013,4.69068377,147.21,147.17,2.0279]
[1745801700213,4.69068377,147.19,147.12,28.26]
[1745801700423,4.69068377,147.19,147.14,4.69068377]
[1745801701415,4.69068377,147.19,147.17,6.7923]
[1745801703422,4.69068377,147.2,147.18,6.7922]
[1745801703722,4.69068377,147.23,147.19,4.69068377]
[1745801703925,32.97068377,147.23,147.19,4.69068377]
[1745801704822,4.69068377,147.22,147.18,4.69068377]
[1745801705427,4.69068377,147.19,147.14,4.69068377]
[1745801705625,4.69068377,147.18,147.14,4.69068377]
[1745801705822,4.69068377,147.19,147.14,4.69068377]
[1745801706518,4.69068377,147.17,147.13,4.69068377]
[1745801706724,4.69068377,147.17,147.14,6.7936]
[1745801707331,4.69068377,147.17,147.12,32.97068377]
[1745801707526,4.69068377,147.17,147.13,4.69068377]
[1745801707727,4.69068377,147.18,147.13,4.69068377]
[1745801708726,4.69068377,147.18,147.15,6.7933]
[1745801708932,4.69068377,147.17,147.13,4.69068377]
[1745801709525,4.69068377,147.17,147.15,6.7933]
[1745801710831,4.69068377,147.18,147.13,4.69068377]
[1745801711435,4.69068377,147.17,147.15,6.7933]
[1745801714032,4.69068377,147.18,147.15,6.7933]
[1745801715939,4.69068377,147.18,147.13,4.69068377]
[1745801716140,4.69068377,147.21,147.17,4.69068377]
[1745801716839,4.69068377,147.21,147.19,6.7915]
[1745801718538,4.69068377,147.21,147.2,6.7913]
[1745801718843,4.69068377,147.25,147.2,4.69068377]
[1745801719038,4.69068377,147.25,147.21,4.69068377]
[1745801719243,35.0685,147.26,147.18,4.1551]
[1745801719244,4.69068377,147.24,147.22,6.7902]
[1745801719644,4.69068377,147.23,147.22,6.7902]
[1745801720745,4.69068377,147.24,147.23,6.7898]
[1745801722541,4.69068377,147.24,147.22,6.7901]
[1745801722737,4.69068377,147.23,147.22,6.7901]
[1745801724947,4.69068377,147.24,147.23,6.7897]
[1745801725150,9.32835539,147.24,147.23,6.7897]
[1745801725343,4.69068377,147.24,147.23,6.7897]
[1745801726149,9.32900939,147.24,147.23,6.7897]
[1745801726349,9.32900939,147.24,147.22,6.7901]
[1745801726544,4.69068377,147.23,147.19,4.69068377]
[1745801727751,4.69068377,147.23,147.21,6.7904]
[1745801728752,4.69068377,147.23,147.22,6.7903]
[1745801729752,4.69068377,147.25,147.21,4.69068377]
[1745801729951,4.63756866,147.24,147.2,4.69068377]
[1745801730254,4.69068377,147.25,147.23,6.7896]
[1745801731152,28.28,147.26,147.24,6.7894]
[1745801731352,9.33000986,147.25,147.24,6.7894]
[1745801731745,9.33000986,147.25,147.23,6.7898]
[1745801731951,4.69068377,147.24,147.18,10.91838377]
[1745801732158,4.69068377,147.23,147.18,10.91838377]
[1745801732362,4.69068377,147.23,147.21,6.7905]
[1745801733162,4.69068377,147.23,147.22,6.7903]
[1745801733365,4.69068377,147.24,147.22,6.7903]
[1745801733564,4.69068377,147.24,147.19,4.69068377]